[Event "Slovakia Open 2022"]
[Site "Bratislava"]
[Date "2022.10.01"]
[Round "4.7"]
[White "Machata, Martin"]
[Black "Lecky, Juraj"]
[Result "1/2-1/2"]
[ECO "B23"]
[WhiteElo "2212"]
[BlackElo "2070"]
[Annotator "TA"]
[PlyCount "40"]
[EventDate "2022.09.30"]
[EventCountry "SVK"]
[SourceTitle "playchess.com"]
[Source "ChessBase"]
[SourceQuality "1"]
[TimeControl "2700+10"]

{[%evp 11,40,-9,0,-15,43,44,29,29,39,31,47,35,31,23,17,33,42,9,8,10,31,-11,-7,-16,-31,-29,-14,-12,-14,-12,-7]} 1. e4 {[%emt 0:00:20]} c5 {[%emt 0:00:10]} 2. Nc3 {[%emt 0:00:03]} d6 {[%emt 0:00:00]} 3. f4 {[%emt 0:00:02]} g6 {[%emt 0:00:00]} 4. Nf3 {[%emt 0:00:10]} Bg7 {[%emt 0:00:00]} 5. Bc4 {[%emt 0:00:00]} Nc6 {[%emt 0:00:48]} 6. O-O {[%emt 0:00:00]} e6 {[%emt 0:00:01]} 7. d4 {[%emt 0:00:01] B23: Closed Sicilian: Lines without g3.} Nxd4 {[%emt 0:01:54]} ({Black should try} 7... cxd4 $11 8. Nb5 Nge7) 8. Be3 $14 {[%emt 0:01:12][%cal Rf3d4]} Qb6 {[%emt 0:10:05]} 9. Nxd4 {[%emt 0:05:42] White has an edge.} cxd4 {[%emt 0:08:55] [#]} 10. Na4 $146 {[%emt 0:04:50]} ({Predecessor:} 10. Bf2 Ne7 11. Nb5 O-O 12. Nxd4 Qxb2 13. Qd3 Qb4 14. c3 Qa5 15. Bh4 Nc6 16. f5 {0-1 (48) Cardwell,G (1862)-Yanayt,E (2080) Ledyard 2022}) 10... Qc6 {[%emt 0:03:42]} 11. Bxd4 {[%emt 0:01:09]} Nf6 {[%emt 0:00:26] [#]} (11... e5 $2 {[#]} 12. Qd3 $1 (12. Bxf7+ Kxf7 13. fxe5+ Bf6 $14) 12... exd4 13. Bb5 $18) 12. Qe2 {[%emt 0:02:39] Threatens to win with Bb5.} O-O {[%emt 0:01:50]} 13. Nc3 {[%emt 0:00:29]} e5 {[%emt 0:04:52] [#]} 14. Nd5 $1 {[%emt 0:03:47]} Nxd5 {[%emt 0:01:07]} 15. Bxd5 {[%emt 0:01:15]} Qc7 {[%emt 0:00:32]} 16. Bc3 {[%emt 0:02:05]} (16. fxe5 $5 {[%cal Rf1f7]} Be6 17. Rad1 $14) 16... Be6 {[%emt 0:01:39]} 17. Rad1 {[%emt 0:01:59]} exf4 {[%emt 0:02:20] Hoping for ...Bxd5.} 18. Bxg7 {[%emt 0:01:16]} Kxg7 {[%emt 0:00:02]} 19. c3 {[%emt 0:09:24]} Bxd5 {[%emt 0:01:17]} 20. Rxd5 {[%emt 0:02:32]} Rae8 {[%emt 0:00:01] Weighted Error Value: White=0.10 (very precise) /Black=0.09 (flawless)} 1/2-1/2

[Event "Slovakia Open 2022"]
[Site "Bratislava"]
[Date "2022.10.01"]
[Round "4.9"]
[White "Chlpek, Daniel"]
[Black "Pasti, Aron"]
[Result "0-1"]
[ECO "A06"]
[WhiteElo "2020"]
[BlackElo "2350"]
[Annotator "TA"]
[PlyCount "56"]
[EventDate "2022.09.30"]
[EventCountry "SVK"]
[SourceTitle "playchess.com"]
[Source "ChessBase"]
[SourceQuality "1"]
[TimeControl "2700+10"]

{[%evp 9,56,24,43,-12,0,0,0,0,0,0,4,6,22,12,16,14,20,0,0,-39,-26,-35,-27,-19,-39,-28,-23,-34,5,6,3,-61,-60,-51,-62,-72,-84,-158,-117,-116,-70,-100,-27,-104,-89,-1027,-481,-945,-935]} 1. Nf3 {[%emt 0:00:13]} d5 {[%emt 0:00:09]} 2. e3 {[%emt 0:00:14]} c5 {[%emt 0:00:11]} 3. b3 {[%emt 0:00:15]} Nf6 {[%emt 0:00:12]} 4. Bb2 {[%emt 0:00:01]} Bg4 {[%emt 0:00:20]} 5. Bb5+ {[%emt 0:01:48]} Nbd7 {[%emt 0:00:18] [#]} 6. d4 $146 {[%emt 0:01:06] A06: Réti Opening: 1 Nf3 d5.} ({White should play} 6. h3 $14 Be6 7. O-O) ({Predecessor:} 6. h3 Bxf3 7. Qxf3 a6 8. Bxd7+ Qxd7 9. O-O Rg8 10. c4 O-O-O 11. Nc3 Kb8 12. cxd5 Nxd5 13. Qxf7 {1-0 (29) Seel,C (2475)-Engel,L (2536) Playchess.com INT 2020}) 6... e6 {[%emt 0:02:53]} 7. O-O {[%emt 0:01:04]} cxd4 {[%emt 0:02:30]} 8. exd4 {[%emt 0:01:14] The position is equal.} Bd6 {[%emt 0:00:27]} 9. Nbd2 {[%emt 0:00:11]} a6 {[%emt 0:00:51]} 10. Be2 {[%emt 0:02:29]} Qc7 {[%emt 0:00:28]} 11. h3 {[%emt 0:00:35]} Bf5 {[%emt 0:01:01]} 12. c4 {[%emt 0:00:13]} dxc4 {[%emt 0:00:03]} 13. Nxc4 {[%emt 0:00:13]} O-O {[%emt 0:03:12]} 14. Nce5 {[%emt 0:05:30]} Nd5 {[%emt 0:00:38]} 15. Rc1 {[%emt 0:00:25]} Qd8 {[%emt 0:02:17]} 16. Nxd7 {[%emt 0:02:18]} Qxd7 {[%emt 0:00:01]} 17. Ne5 {[%emt 0:00:02]} Qd8 {[%emt 0:02:09]} 18. Bf3 {[%emt 0:01:23]} Bb8 {[%emt 0:02:08]} 19. Ba3 {[%emt 0:06:25]} Re8 {[%emt 0:02:19]} 20. Nc4 {[%emt 0:00:36]} (20. Qd2 $11) 20... Bf4 $15 {[%emt 0:02:47]} 21. Ra1 $1 {[%emt 0:00:14]} Qg5 {[%emt 0:03:43]} 22. Bg4 {[%emt 0:06:00]} Be4 {[%emt 0:05:08][%cal Oh7h5] Hoping for ...h5!} 23. Bb2 {[%emt 0:02:53]} ({Better is} 23. g3) 23... b5 {[%emt 0:01:35]} 24. Ne5 {[%emt 0:00:19]} f6 {[%emt 0:01:36]} (24... Rac8 $17 {...Rc2 is the strong threat.} 25. Re1 Bf5) 25. Nd3 {[%emt 0:00:36] [#]} Bd6 {[%emt 0:01:28]} ({Black should try} 25... Bxg2 $1 $17 26. Kxg2 f5) 26. Bf3 {[%emt 0:05:42] [#]} (26. Re1 $1 $11) 26... Nf4 $1 $17 {[%emt 0:03:51] Black is much more active. The white rooks are badly placed.} 27. Bxe4 $4 {[%emt 0:00:03][%mdl 8192]} (27. Nxf4 $17 Qxf4 28. Re1) 27... Nxh3+ $1 $19 {[%emt 0:00:02]} 28. Kh1 {[%emt 0:00:10]} Qh4 {[%emt 0:00:03][%csl LRe4,LRf2] Weighted Error Value: White=0.37/Black=0.14 (very precise)} 0-1

[Event "Slovakia Open 2022"]
[Site "Bratislava"]
[Date "2022.10.01"]
[Round "4.10"]
[White "Kostolansky, Sebastian Lukas"]
[Black "Mandak, Miroslav"]
[Result "1-0"]
[ECO "B52"]
[WhiteElo "2398"]
[BlackElo "1864"]
[Annotator "TA"]
[PlyCount "93"]
[EventDate "2022.09.30"]
[EventCountry "SVK"]
[SourceTitle "playchess.com"]
[Source "ChessBase"]
[SourceQuality "1"]
[TimeControl "2700+10"]

{[%evp 15,93,51,57,64,75,77,83,82,79,52,92,75,166,153,154,150,143,143,205,228,384,360,368,379,379,387,374,382,357,354,470,473,461,467,450,465,428,383,445,445,445,445,447,445,445,442,616,595,606,604,606,604,604,598,599,407,553,514,538,555,707,550,527,462,455,415,420,406,513,335,507,484,468,461,571,541,819,774,784,714]} 1. e4 {[%emt 0:00:05]} c5 {[%emt 0:00:03]} 2. Nf3 {[%emt 0:00:03]} d6 {[%emt 0:00:32]} 3. Bb5+ {[%emt 0:00:21]} Bd7 {[%emt 0:00:10]} 4. Bxd7+ {[%emt 0:00:16]} Qxd7 {[%emt 0:00:02]} 5. O-O {[%emt 0:04:24]} Nc6 {[%emt 0:00:28]} 6. c3 {[%emt 0:00:18]} Nf6 {[%emt 0:03:18]} 7. Re1 {[%emt 0:00:02]} e5 {[%emt 0:01:57]} 8. d4 {[%emt 0:00:31]} Be7 {[%emt 0:01:34]} 9. d5 {[%emt 0:03:17] B52: Sicilian: Moscow Variation with 3...Bd7.} Nd8 {[%emt 0:01:43]} 10. c4 {[%emt 0:03:33]} O-O {[%emt 0:00:29]} 11. Nc3 {[%emt 0:00:02][%cal Bb1c3,Bc3a4,Ba4b6,Bb6d7][%mdl 32] White is better.} Ne8 {[%emt 0:00:48] [#]} 12. Be3 $146 {[%emt 0:04:30]} ({Predecessor:} 12. Qd3 Bf6 13. Rb1 g6 14. Bh6 Bg7 15. Bxg7 Nxg7 16. b4 cxb4 17. Rxb4 b6 18. Reb1 {1-0 (46) Fievet,P (2091)-Ane,R (1993) Pau 2008}) 12... Nc7 {[%emt 0:02:38]} 13. Nd2 {[%emt 0:04:23]} a6 {[%emt 0:02:24] [#]} (13... g6 $16) 14. Na4 $1 $18 {[%emt 0:01:55][%cal Ob2b4] Threatens to win with b4!} Rb8 {[%emt 0:00:53]} 15. Nb6 {[%emt 0:00:02]} Qe8 {[%emt 0:00:05]} 16. Qg4 {[%emt 0:09:58] And now Bh6 would win. White is more active.} f5 {[%emt 0:00:03]} (16... f6 $16 {might work better.} 17. Qh3 Rf7) 17. exf5 $40 {[%emt 0:00:12][%mdl 128] Strongly threatening Ne4. White attacks with force.} Na8 $2 {[%emt 0:00:24] [#]} (17... Kh8 {is a better defense.} 18. Ne4 Na8) 18. f6 {[%emt 0:02:28]} (18. Bh6 Rf7 $18) 18... Rxf6 {[%emt 0:01:09]} 19. Nd7 {[%emt 0:00:02]} Rg6 {[%emt 0:01:04]} 20. Qh3 {[%emt 0:00:57]} Nf7 {[%emt 0:03:20]} 21. Nxb8 {[%emt 0:00:03]} Qxb8 {[%emt 0:00:01]} 22. b4 {[%emt 0:03:39]} b6 {[%emt 0:01:35]} 23. bxc5 {[%emt 0:00:08]} dxc5 {[%emt 0:01:33]} 24. Rab1 {[%emt 0:00:11]} Qd8 {[%emt 0:01:42]} 25. f4 {[%emt 0:01:40][%cal Bf2f4,Bf4f5][%mdl 32]} Nc7 {[%emt 0:04:02]} 26. f5 {[%emt 0:01:30]} Rf6 {[%emt 0:00:06]} 27. Ne4 {[%emt 0:00:18]} Ne8 {[%emt 0:00:53]} 28. Nxf6+ {[%emt 0:00:42]} ({Don't play} 28. Bg5 Nxg5 29. Nxg5 h6 $18) 28... Bxf6 {[%emt 0:00:18]} 29. Bf2 {[%emt 0:00:08]} Ned6 {[%emt 0:00:23]} 30. Qb3 {[%emt 0:00:44]} b5 {[%emt 0:00:22]} 31. cxb5 {[%emt 0:00:19]} c4 {[%emt 0:00:19]} 32. Qc2 {[%emt 0:00:08]} axb5 {[%emt 0:00:02]} 33. a4 {[%emt 0:00:09]} bxa4 {[%emt 0:02:12]} 34. Qxa4 {[%emt 0:00:01]} h6 {[%emt 0:00:30]} 35. Bb6 {[%emt 0:00:46]} Qc8 {[%emt 0:00:55]} 36. Rf1 {[%emt 0:00:47]} Kh7 {[%emt 0:01:56]} 37. Qc6 {[%emt 0:00:06]} Qf8 {[%emt 0:01:38]} 38. Bc7 {[%emt 0:01:01]} e4 {[%emt 0:00:37]} 39. Rbc1 {[%emt 0:00:39]} Qe7 {[%emt 0:01:48]} 40. Rxc4 {[%emt 0:00:25]} Nxc4 {[%emt 0:00:15]} 41. Qxc4 {[%emt 0:00:01]} Ne5 {[%emt 0:03:09]} 42. Qc2 {[%emt 0:00:04]} e3 {[%emt 0:00:58]} (42... Ng4 $142 43. Bf4 Be5) 43. d6 {[%emt 0:00:17] White is clearly winning.} Qd7 {[%emt 0:00:37]} 44. Qe4 {[%emt 0:00:30]} Nf7 {[%emt 0:02:53]} 45. Qe6 {[%emt 0:00:01]} e2 {[%emt 0:00:04]} 46. Re1 {[%emt 0:00:22]} (46. Qxd7 $2 {is a self mate.} Bd4+ 47. Kh1 exf1=Q#) 46... Bd4+ {[%emt 0:00:06]} 47. Kh1 {[%emt 0:00:01] Black did not feel at home in the position after the opening.  Weighted Error Value: White=0.16 (very precise) /Black=0.35} 1-0

[Event "Slovakia Open 2022"]
[Site "Bratislava"]
[Date "2022.10.01"]
[Round "4.11"]
[White "Panko, Radoslav"]
[Black "Novosadova, Kristyna"]
[Result "0-1"]
[ECO "A45"]
[WhiteElo "1996"]
[BlackElo "2151"]
[Annotator "TA"]
[PlyCount "108"]
[EventDate "2022.09.30"]
[EventCountry "SVK"]
[SourceTitle "playchess.com"]
[Source "ChessBase"]
[SourceQuality "1"]
[TimeControl "2700+10"]

{[%evp 9,108,13,19,8,9,0,19,16,43,38,41,39,43,44,39,37,40,44,44,44,42,38,49,41,70,63,81,50,66,68,59,61,62,66,66,53,53,48,93,55,55,55,55,31,60,0,35,32,37,37,112,0,28,28,55,46,46,46,46,46,46,46,46,46,46,46,76,0,0,0,0,0,0,0,0,0,0,-204,-192,-192,-185,-185,-185,-499,-480,-454,-401,-449,-442,-949,-869,-893,-775,-29960,-29959,-29967,-29968,-29968,-29965,-11780,-8119]} 1. d4 {[%emt 0:00:04]} Nf6 {[%emt 0:05:55]} 2. Bg5 {[%emt 0:00:13]} Ne4 {[%emt 0:00:23]} 3. h4 {[%emt 0:00:03]} h6 {[%emt 0:00:51]} 4. Bf4 {[%emt 0:01:19]} d5 {[%emt 0:00:11]} 5. Nd2 {[%emt 0:00:17]} Bf5 {[%emt 0:00:40]} 6. Nxe4 {[%emt 0:00:53] A45: Trompowsky Attack.} Bxe4 {[%emt 0:01:11]} 7. e3 {[%emt 0:02:08]} c6 {[%emt 0:00:22]} 8. f3 {[%emt 0:01:36] [#] The position is equal.} Bf5 $146 {[%emt 0:00:46]} ({Predecessor:} 8... Bh7 9. c3 Qb6 10. Qb3 e6 11. Bxb8 Rxb8 12. Qxb6 axb6 13. Nh3 Bd6 14. Kf2 e5 15. dxe5 Bxe5 {½-½ (63) Echegaray,P (2270)-Alvarez Ibarra,R (2385) Ermua 1990}) 9. c4 {[%emt 0:01:17]} Qa5+ {[%emt 0:01:49]} 10. Kf2 {[%emt 0:01:32]} e6 {[%emt 0:00:36]} 11. Qb3 {[%emt 0:00:15]} Qb6 {[%emt 0:01:20]} 12. c5 {[%emt 0:00:21]} Qxb3 {[%emt 0:00:16]} 13. axb3 {[%emt 0:00:03][%cal Ba2b3,Bb3b4][%mdl 32]} Nd7 {[%emt 0:00:54][%cal Oe6e5]} 14. b4 {[%emt 0:00:05]} Be7 {[%emt 0:01:45]} 15. g4 {[%emt 0:01:58]} Bg6 {[%emt 0:02:14]} 16. Ne2 {[%emt 0:00:42][%cal Ob4b5,Bg1e2,Be2c1,Bc1d3][%mdl 32]} O-O {[%emt 0:00:54]} 17. Nc1 {[%emt 0:00:26]} a6 {[%emt 0:01:57]} 18. Bd3 {[%emt 0:00:45]} Rae8 {[%emt 0:01:18]} 19. Bxg6 {[%emt 0:02:24]} fxg6 {[%emt 0:00:02]} 20. Nd3 {[%emt 0:00:41]} g5 {[%emt 0:01:24]} 21. hxg5 {[%emt 0:00:14]} hxg5 {[%emt 0:00:36]} 22. Be5 {[%emt 0:00:33]} Kf7 {[%emt 0:01:15]} 23. Kg2 {[%emt 0:08:22]} Kg6 {[%emt 0:00:55]} 24. Rh5 {[%emt 0:01:45]} Rh8 {[%emt 0:02:49]} 25. Rxh8 {[%emt 0:05:25]} Rxh8 {[%emt 0:00:02]} 26. Rh1 {[%emt 0:00:03]} Ra8 {[%emt 0:01:14]} 27. Ra1 {[%emt 0:00:16]} (27. Rh5 $14) 27... Bf6 {[%emt 0:03:45]} 28. Bc7 {[%emt 0:03:08]} Rc8 {[%emt 0:00:16]} 29. Bd6 {[%emt 0:00:24]} Re8 {[%emt 0:00:20] [#]} (29... Kf7 $14) 30. Be5 {[%emt 0:00:13]} (30. b5 $1 $16 {[%cal Rb5c6] Black must now prevent bxc6.} axb5 31. Ra7) 30... Kf7 {[%emt 0:01:13]} 31. Rh1 {[%emt 0:00:15]} Nf8 {[%emt 0:00:44]} 32. Kg3 {[%emt 0:02:38]} Ng6 {[%emt 0:00:12]} 33. Bxf6 {[%emt 0:00:45]} Kxf6 $14 {[%emt 0:00:16][%mdl 4096] Endgame KRN-KRN} 34. f4 $1 {[%emt 0:00:16] Inhibits e5.} gxf4+ {[%emt 0:04:06]} 35. exf4 {[%emt 0:00:10]} Ra8 {[%emt 0:00:20]} 36. Ra1 {[%emt 0:04:18]} Rh8 {[%emt 0:00:01]} 37. Nf2 {[%emt 0:00:12]} Nf8 {[%emt 0:00:38]} 38. Rh1 {[%emt 0:00:48]} (38. Nh3 $16) 38... Rxh1 $11 {[%emt 0:02:42]} 39. Nxh1 {[%emt 0:00:01] KN-KN} g5 {[%emt 0:00:01]} 40. Nf2 {[%emt 0:00:07]} gxf4+ {[%emt 0:00:14]} 41. Kxf4 {[%emt 0:00:02]} Ng6+ {[%emt 0:00:02]} 42. Ke3 {[%emt 0:01:46]} Kg5 {[%emt 0:00:30] Threatens to win with ...e5.} 43. Nd3 {[%emt 0:01:52] Prevents e5.} (43. Kf3 $1 $11) 43... Kxg4 $19 {[%emt 0:00:15]} 44. Nc1 {[%emt 0:00:09] [#]} e5 $1 {[%emt 0:00:28]} 45. dxe5 {[%emt 0:00:45]} Nxe5 {[%emt 0:00:02] And now ...Nc4+ would win.} 46. Nb3 $2 {[%emt 0:00:13]} (46. b3 {is more resistant.}) 46... Nc4+ {[%emt 0:00:42]} 47. Kd4 {[%emt 0:00:07]} Kf4 {[%emt 0:00:24]} 48. Kc3 {[%emt 0:00:20]} Ke4 {[%emt 0:00:23] Strongly threatening ...Ne5.} 49. Nd4 {[%emt 0:00:16] [#]} (49. Nc1 $142 Ne3 50. Ne2) 49... Nxb2 $1 {[%emt 0:00:21][%mdl 512] ( -> ...Na4+)} 50. Ne6 {[%emt 0:00:16]} (50. Ne2 Nd1+) 50... Nd1+ {[%emt 0:01:01]} 51. Kb3 {[%emt 0:00:32]} d4 {[%emt 0:00:21][%cal Bd5d4,Bd4d3][%mdl 32]} 52. Nd8 {[%emt 0:00:03]} d3 {[%emt 0:00:08]} 53. Nxb7 {[%emt 0:00:08]} Nf2 {[%emt 0:00:27]} 54. Nd6+ {[%emt 0:00:09]} Ke3 {[%emt 0:00:01] Weighted Error Value: White=0.40/Black=0.12 (very precise)} 0-1

[Event "Slovakia Open 2022"]
[Site "Bratislava"]
[Date "2022.10.01"]
[Round "4.12"]
[White "Hnatyshyn, Anastasiia"]
[Black "Kijac, Miroslav"]
[Result "1-0"]
[ECO "C05"]
[WhiteElo "2087"]
[BlackElo "2078"]
[Annotator "TA"]
[PlyCount "55"]
[EventDate "2022.09.30"]
[EventCountry "SVK"]
[SourceTitle "playchess.com"]
[Source "ChessBase"]
[SourceQuality "1"]
[TimeControl "2700+10"]

{[%evp 13,55,43,44,40,37,39,40,22,55,50,79,72,80,76,89,70,66,56,110,120,135,95,96,64,195,191,580,557,711,705,917,916,1243,1245,1228,1343,1260,1346,1331,1319,1306,1295,1662,1648]} 1. e4 {[%emt 0:00:06]} e6 {[%emt 0:00:03]} 2. d4 {[%emt 0:00:02]} d5 {[%emt 0:00:02]} 3. Nd2 {[%emt 0:00:03]} Nf6 {[%emt 0:00:09]} 4. e5 {[%emt 0:00:02]} Nfd7 {[%emt 0:00:02]} 5. f4 {[%emt 0:00:03]} c5 {[%emt 0:00:01]} 6. c3 {[%emt 0:00:02]} b6 {[%emt 0:00:03]} 7. Ndf3 {[%emt 0:00:16]} Be7 {[%emt 0:00:03]} 8. h4 {[%emt 0:00:12] C05: French Tarrasch: 3...Nf6 4 e5 Nfd7, 5 f4 and 5 Bd3 sidelines.} Ba6 {[%emt 0:00:11]} 9. Bxa6 {[%emt 0:00:04]} Nxa6 {[%emt 0:00:00] [#]} 10. h5 $146 {[%emt 0:00:27] White is slightly better.} ({Predecessor:} 10. f5 exf5 11. Qd3 Qc8 12. Qxf5 cxd4 13. Nxd4 g6 14. Qf1 Qc4 15. Ngf3 Nac5 16. Qxc4 dxc4 {0-1 (36) Certic,B (2435)-Drasko,M (2520) Niksic 1997}) 10... h6 {[%emt 0:00:20]} 11. Ne2 {[%emt 0:00:27]} Qc7 {[%emt 0:00:19]} 12. Qd3 {[%emt 0:00:29]} Qb7 {[%emt 0:00:42]} 13. f5 {[%emt 0:01:32] [#] aiming for fxe6.} Nc7 {[%emt 0:01:20]} 14. g4 {[%emt 0:02:44]} O-O-O {[%emt 0:00:42]} 15. Bd2 {[%emt 0:00:56]} f6 {[%emt 0:01:41]} (15... c4 $14 16. Qb1 b5) 16. O-O-O $16 {[%emt 0:03:52]} Rhf8 {[%emt 0:01:47]} 17. Nh4 {[%emt 0:03:39][%cal Bf3h4,Bh4g6,Bg6h8,Bh8f7,Bf7d6][%mdl 32] White is more active.} fxe5 {[%emt 0:00:35]} 18. Ng6 {[%emt 0:00:03][%csl LRe5,LRe7,LRf8]} Rf7 {[%emt 0:03:41] This move loses the game for Black.} ({Black should play} 18... Bf6 $14) 19. dxe5 $18 {[%emt 0:00:30] Strongly threatening fxe6.} ({Don't play} 19. Nxe5 $6 Nxe5 20. dxe5 Qc6 $14) 19... Nf8 {[%emt 0:00:36] [#]} (19... c4 {is a better chance.} 20. Qc2 Nc5) 20. Nh8 {[%emt 0:03:38] White is clearly winning.} c4 {[%emt 0:01:30]} 21. Qc2 {[%emt 0:00:51]} Na6 {[%emt 0:03:30]} 22. Nxf7 {[%emt 0:00:25]} Rd7 {[%emt 0:00:25]} 23. Nd4 {[%emt 0:02:06]} Nc5 {[%emt 0:00:05]} 24. fxe6 {[%emt 0:00:31]} Nfxe6 {[%emt 0:00:52]} 25. Nxe6 {[%emt 0:00:39]} Nxe6 {[%emt 0:00:05]} 26. Qf5 {[%emt 0:00:37]} Qc6 {[%emt 0:00:40]} 27. Nd6+ {[%emt 0:00:43]} Kb8 {[%emt 0:00:45]} 28. Qxe6 {[%emt 0:00:05] Weighted Error Value: White=0.06 (flawless) /Black=0.65} 1-0

[Event "Slovakia Open 2022"]
[Site "Bratislava"]
[Date "2022.10.01"]
[Round "4.13"]
[White "Sobek, Michal"]
[Black "Nytra, Ondrej"]
[Result "1/2-1/2"]
[ECO "A07"]
[WhiteElo "2156"]
[BlackElo "2233"]
[Annotator "TA"]
[PlyCount "103"]
[EventDate "2022.09.30"]
[EventCountry "SVK"]
[SourceTitle "playchess.com"]
[Source "ChessBase"]
[SourceQuality "1"]
[TimeControl "2700+10"]

{[%evp 10,103,34,8,35,34,64,13,43,38,36,0,44,18,14,23,20,12,30,17,29,-54,-47,-56,-72,-87,-81,-87,-87,-117,154,149,140,34,34,34,34,34,34,0,0,0,473,-342,-350,-339,-8,-14,0,-200,251,-790,507,13,159,-20,-7,-57,-14,-22,8,-46,0,-156,-138,-133,-123,-162,-152,-153,-115,-147,-128,-120,-79,-79,-62,-72,-72,-494,-494,-461,-454,-29986,-280,-258,-258,-1498,-8,-8,-8,-8,-8,-8,-8,-8]} 1. Nf3 {[%emt 0:00:07]} d5 {[%emt 0:00:15]} 2. g3 {[%emt 0:00:04]} g6 {[%emt 0:00:49]} 3. Bg2 {[%emt 0:00:13]} Bg7 {[%emt 0:00:03]} 4. O-O {[%emt 0:00:15]} Nf6 {[%emt 0:00:23]} 5. c4 {[%emt 0:01:19]} dxc4 {[%emt 0:01:23]} 6. Na3 {[%emt 0:00:21]} O-O {[%emt 0:01:18] A07: Réti Opening: New York and Capablanca Systems.} 7. Nxc4 {[%emt 0:00:04]} c6 {[%emt 0:00:01]} 8. d3 {[%emt 0:00:40]} ({Better is} 8. b3 $14) 8... Nbd7 {[%emt 0:01:56]} 9. Qc2 {[%emt 0:03:24]} Nb6 {[%emt 0:00:14]} 10. Be3 {[%emt 0:01:31] [#]} Be6 $146 {[%emt 0:02:12]} ({Predecessor:} 10... Nfd5 11. Bd2 Re8 12. e4 Nf6 13. Bc3 Be6 14. Ne3 Ng4 15. Nxg4 Bxg4 16. Bxg7 Kxg7 {1-0 (47) Marjanovic,A (2353)-Maltsevskaya,A (2396) Chess.com INT 2022}) 11. Rad1 {[%emt 0:02:20]} Nxc4 {[%emt 0:00:44]} 12. dxc4 {[%emt 0:00:11]} Qa5 {[%emt 0:00:02]} 13. Nd4 {[%emt 0:01:06]} Bg4 {[%emt 0:01:58]} 14. h3 {[%emt 0:02:09]} Bc8 {[%emt 0:00:27]} 15. b4 {[%emt 0:01:07]} (15. Bd2 $11 Qb6 16. Bf4) 15... Qxb4 $15 {[%emt 0:01:40]} 16. Nb3 {[%emt 0:02:46]} Bf5 {[%emt 0:01:26]} 17. Qc1 {[%emt 0:00:49]} Be6 $1 {[%emt 0:03:39]} 18. Rd4 {[%emt 0:06:44]} Nd7 {[%emt 0:06:02]} 19. Rd2 {[%emt 0:05:46]} Rfd8 $2 {[%emt 0:02:12][%mdl 8192]} (19... Nb6 $1 $17 {and life is bright.} 20. Bc5 Qxc4 21. Bxe7 Rfe8) 20. Rfd1 $16 {[%emt 0:01:17][%cal Ob3c5] Strongly threatening Nc5!} Qc3 {[%emt 0:08:30]} 21. Qxc3 {[%emt 0:01:42]} (21. Qa3 $1 $16) 21... Bxc3 $14 {[%emt 0:00:05]} 22. Rd3 {[%emt 0:00:12]} Bb4 {[%emt 0:00:01] [#]} 23. Bc5 $1 {[%emt 0:01:09]} a5 {[%emt 0:07:54][%cal Oe6c4]} 24. Bxb4 {[%emt 0:01:35]} (24. Bb6 $5) 24... axb4 {[%emt 0:00:01]} 25. Nc5 $1 $36 {[%emt 0:00:04][%mdl 2048] White is pushing.} Kg7 $2 {[%emt 0:00:00][%mdl 8192]} 26. Rd4 $4 {[%emt 0:01:17][%mdl 8192]} ({Less strong is} 26. Nxd7 Bxc4 27. Nb6 (27. Rd4 b5 $11) 27... Bxd3 28. Nxa8 Rxa8 29. exd3 Rxa2 $14) (26. Nxe6+ $18 {is the narrow road to win.} fxe6 27. Rxd7 Rxd7 28. Rxd7) 26... Nxc5 $19 {[%emt 0:02:26]} 27. Rxd8 {[%emt 0:02:08]} Rxd8 {[%emt 0:00:10]} (27... Rxa2 $19 {White must now prevent ...b3.} 28. Rb1 b3) 28. Rxd8 {[%emt 0:00:10][%mdl 4096] Endgame KRB-KBN} Na4 {[%emt 0:00:10]} 29. Rd4 $2 {[%emt 0:00:10]} (29. e3 $11) 29... b3 $4 {[%emt 0:02:12][%mdl 8192]} (29... Nc3 30. Rd2 $17) (29... c5 $19 30. Rd8 Bxc4) 30. c5 {[%emt 0:00:10][%mdl 8192]} (30. axb3 $18 Nc5 31. b4) 30... Kf6 $4 {[%emt 0:00:00][%mdl 8192]} 31. axb3 {[%emt 0:01:07]} ({White must play} 31. Rxa4 $18 bxa2 32. Kf1) 31... Nxc5 {[%emt 0:00:16]} (31... Bxb3 $11 {remains equal.} 32. Rd3 (32. Rf4+ Ke6 $11) 32... Bc4) 32. e4 $2 {[%emt 0:01:58]} ({Only move:} 32. b4 $16 Nd7 33. f3) 32... Bxb3 $11 {[%emt 0:00:10]} 33. Rb4 {[%emt 0:00:10]} (33. Rd2 $11) 33... Ba2 {[%emt 0:00:10]} 34. f4 {[%emt 0:00:10]} Ke6 {[%emt 0:00:10]} 35. Bf1 {[%emt 0:00:10]} (35. Rd4 $11) 35... b5 {[%emt 0:00:10]} (35... Kd6 $15 {is superior.}) 36. Bxb5 $2 {[%emt 0:00:22]} cxb5 $17 {[%emt 0:00:13]} 37. Rxb5 {[%emt 0:00:04] [#]} Kd6 {[%emt 0:00:19]} 38. e5+ {[%emt 0:00:46]} Kc6 {[%emt 0:00:28]} 39. Rb8 {[%emt 0:00:05]} h5 {[%emt 0:00:23]} 40. Rc8+ {[%emt 0:00:20]} Kd5 {[%emt 0:00:25]} 41. Rc7 {[%emt 0:00:30]} Ne4 {[%emt 0:00:36]} 42. Rxe7 {[%emt 0:00:03]} Nxg3 {[%emt 0:00:02]} 43. Rxf7 {[%emt 0:01:52] [#]} Ke4 $1 {[%emt 0:00:07]} 44. Ra7 {[%emt 0:00:29][%mdl 8192]} (44. Rf6 $17) 44... Bd5 $19 {[%emt 0:00:26]} 45. Ra4+ {[%emt 0:00:42]} Kf3 {[%emt 0:00:17]} 46. Kh2 {[%emt 0:01:06]} (46. Ra5 $19 Ne2+ 47. Kf1 Nxf4 48. Ra3+ Ke4 49. h4) 46... Ne2 $2 {[%emt 0:00:13]} (46... Kf2 {mates} 47. Ra1 h4 48. f5 gxf5 49. e6 Nf1+ 50. Rxf1+ Kxf1 51. e7 Bc6 52. e8=B Bxe8 53. Kh1 Bd7 54. Kh2 f4 55. Kh1 Kf2 56. Kh2 f3 57. Kh1 Kg3 58. Kg1 f2+ 59. Kh1 f1=Q#) 47. Ra6 {[%emt 0:00:44]} Nxf4 {[%emt 0:00:03]} 48. Rf6 $2 {[%emt 0:00:06]} (48. h4) 48... Ke4 $2 {[%emt 0:00:08]} (48... h4 $19 49. Rf8 Ke4) 49. Kg3 $11 {[%emt 0:00:24] The position is equal.} g5 {[%emt 0:00:08]} 50. h4 {[%emt 0:00:32]} gxh4+ {[%emt 0:00:02]} 51. Kxh4 {[%emt 0:00:12]} Kxe5 {[%emt 0:00:01]} 52. Rxf4 {[%emt 0:00:01][%mdl 64] Remove Defender. A wild game.  Weighted Error Value: White=1.04/Black=0.91} 1/2-1/2